fUST/lending_fUST_20260203
["ID","MTS","AMOUNT","RATE_DAILY","PERIOD"]
[404375964,1770085791434,-539.22732793,0.00017999,2]
[404375965,1770085791463,-169.4875037,0.00017999,2]
[404375966,1770085791492,-500.0,0.00017999,2]
[404375967,1770085791521,-500.0,0.00017999,2]
[404375968,1770085791553,-500.0,0.00017999,2]
[404375969,1770085791652,10000.0,0.00015342,2]
[404375970,1770085791666,-500.0,0.00017999,2]
[404375971,1770085791675,-5082.58033674,0.00018,2]
[404375972,1770085791715,1280.92,0.00015442,2]
[404375973,1770085791730,-10000.01,0.00018,2]
[404375974,1770085791805,-500.0,0.00017999,2]
[404375975,1770085791840,-9000.01,0.00018,2]
[404375976,1770085792022,-5000.0,0.00017819,2]
[404375977,1770085792062,-0.01,0.00018,2]
[404375978,1770085792442,-500.0,0.00017999,2]
[404375979,1770085792475,-500.0,0.00017999,2]
[404375980,1770085792528,-8000.01,0.00018,2]
[404375981,1770085792811,-500.0,0.00017999,2]
[404375982,1770085792852,-9000.01,0.00018,2]
[404375983,1770085795807,-500.0,0.00017999,2]
[404375984,1770085795843,-500.0,0.00017999,2]
[404375985,1770085795878,-500.0,0.00017999,2]
[404375986,1770085795911,-518.16695484,0.00017999,2]
[404375987,1770085795946,-387.64628686,0.00017999,2]
[404375988,1770085795982,-500.0,0.00017999,2]
[404375989,1770085796014,-500.0,0.00017999,2]
[404375990,1770085796047,-500.0,0.00017999,2]
[404375991,1770085796082,-600.0,0.00017999,2]
[404375992,1770085796247,-988.3835166,0.00018,2]
[404375993,1770085797736,-10000.01,0.00018,2]
[404375994,1770085797954,-10000.01,0.00018,2]
[404376002,1770085804274,162.38059682,0.00013273,2]
[404376003,1770085804370,500.0,0.00013699,2]
[404376004,1770085804433,62.63420728,0.00014247,2]
[404376005,1770085804460,252.15822772,0.00014247,2]
[404376006,1770085807422,500.0,0.00013273,2]
[404376007,1770085807453,423.27562291,0.00013273,2]
[404376008,1770085807525,500.0,0.00013699,2]
[404376009,1770085807595,500.65001385,0.00014247,2]
[404376010,1770085807626,507.77467851,0.00013699,2]
[404376011,1770085807777,500.0,0.00013273,2]
[404376012,1770085807831,500.0,0.00013273,2]
[404376013,1770085807864,500.0,0.00013821,2]
[404376014,1770085807894,1000.0,0.00013821,2]
[404376015,1770085807925,1000.0,0.00013821,2]
[404376016,1770085807955,1002.98054822,0.00014368,2]
[404376017,1770085807984,500.0,0.00013273,2]
[404376018,1770085808014,1001.30398043,0.00014368,2]
[404376019,1770085808158,500.0,0.00013699,2]
[404376021,1770085808211,1000.0,0.00014247,2]
[404376022,1770085808290,500.0,0.00013273,2]
[404376023,1770085808336,1000.000001,0.00013821,2]
[404376024,1770085808531,-300.0,0.00017999,2]
[404376025,1770085808560,-300.0,0.00017999,2]
[404376026,1770085808608,-8800.01,0.00018,2]
[404376027,1770085808723,-10000.01,0.00018,2]
[404376028,1770085808752,500.80684239,0.00013699,2]
[404376029,1770085808830,-10000.01,0.00018,2]
[404376030,1770085811871,1500.0,0.00014795,2]
[404376031,1770085811942,1000.0,0.00014247,2]
[404376032,1770085811977,1500.0,0.00015342,2]
[404376033,1770085812047,500.0,0.00013699,2]
[404376034,1770085812200,543.83551273,0.00013699,2]
[404376035,1770085812457,500.0,0.00013699,2]
[404376036,1770085812587,500.0,0.00013699,2]
[404376037,1770085812643,158.68078088,0.00014247,2]
[404376038,1770085814344,500.0,0.00013699,2]
[404376039,1770085814390,538.71956343,0.00014247,2]
[404376040,1770085814738,500.0,0.00013273,2]
[404376041,1770085815122,500.0,0.00013699,2]
[404376042,1770085817157,500.31997124,0.00013273,2]
[404376043,1770085817877,500.0,0.00013273,2]
[404376044,1770085818081,500.0,0.00013273,2]
[404376045,1770085818134,1000.0,0.00013821,2]
[404376046,1770085818192,500.0,0.00014368,2]
[404376047,1770085818776,239.94552144,0.00013273,2]
[404376072,1770085837183,-5000.0,0.00017819,2]
[404376074,1770085837192,-6693.00924639,0.00017899,2]
[404376076,1770085837201,-1200.0,0.00017999,2]
[404376077,1770085837213,-154.25703009,0.00017999,2]
[404376078,1770085837223,-500.0,0.00017999,2]
[404376080,1770085837232,-279.79632832,0.00017999,2]
[404376082,1770085837242,-186172.9373952,0.00018,2]
[404376083,1770085837254,-513.27975241,0.00018,2]
[404376084,1770085837295,-850.60969334,0.00017154,2]
[404376130,1770085838372,-149.39030666,0.00017154,2]
[404376132,1770085838382,-2416.19992829,0.00018,2]
[404376134,1770085838395,-778.84760469,0.00018,2]
[404376136,1770085838428,-491.4650598,0.00018,2]
[404376139,1770085838440,-323682.49807849,0.00018,2]
[404376140,1770085838449,-5528.81350601,0.00018079,2]
[404376142,1770085838459,-150.0,0.0001818,2]
[404376143,1770085838469,-600.0,0.00018359,2]
[404376144,1770085838478,-11064.5043235,0.00018365,2]
[404376145,1770085838487,-303.10001603,0.000189,2]
[404376146,1770085838496,-303.10001603,0.00019089,2]
[404376147,1770085838507,-303.10001603,0.00019278,2]
[404376148,1770085838518,-1154.15,0.000193,2]
[404376149,1770085838531,-303.10001603,0.00019467,2]
[404376150,1770085838540,-303.10001603,0.00019656,2]
[404376151,1770085838551,-454.65002405,0.00019845,4]
[404376152,1770085838561,-303.10001605,0.00020034,4]
[404376153,1770085838570,-177.0,0.0002018,2]
[404376154,1770085838579,-720.0,0.00020195,2]
[404376155,1770085838589,-2468.8246216,0.00020691,2]
[404376156,1770085838598,-1566.80780372,0.00021,10]
[404376157,1770085838607,-173.6,0.00021,2]
[404376158,1770085838616,-550.8692332,0.0002121,2]
[404376159,1770085838626,-265.93688207,0.0002218,2]
[404376160,1770085838635,-864.0,0.00022214,10]
[404376161,1770085838645,-1000.0,0.00024436,10]
[404376162,1770085838654,-7490.11212535,0.00024774,2]
[404376163,1770085838664,-28110.81710526,0.00026,30]
[404376164,1770085838674,-1000.0,0.00026879,30]
[404376165,1770085838683,-244.0,0.00026879,30]
[404376166,1770085838693,-1000.0,0.00029567,30]
[404376167,1770085838703,-492.0,0.00029567,30]
[404376168,1770085838712,-9703.48204603,0.00032,30]
[404376169,1770085838722,-1000.0,0.00032524,30]
[404376170,1770085838731,-337.0,0.00032524,30]
[404376171,1770085838741,-196.89,0.00032877,10]
[404376172,1770085838751,-164.07,0.00032877,10]
[404376173,1770085838760,-820.39,0.00032877,10]
[404376174,1770085838770,-160.27,0.00037588,2]
[404376175,1770085838779,-1154.15,0.000376,14]
[404376176,1770085838788,-219.96390704,0.00037709,120]
[404376177,1770085838799,-19313.04303302,0.00037809,2]
[404376178,1770085838808,-703.4885997,0.00037809,2]
[404376179,1770085838817,-1666.93,0.00037944,2]
[404376180,1770085838827,-8915.3990662,0.00037945,2]
[404376181,1770085838836,-153.62152773,0.00038,2]
[404376182,1770085838845,-223.49663098,0.00038894,11]
[404376183,1770085838854,-158.1331923,0.00039433,2]
[404376184,1770085838864,-500.0,0.00039728,2]
[404376185,1770085838873,-150.32745251,0.00039728,2]
[404376186,1770085838883,-164.99,0.000399,30]
[404376187,1770085838892,-331.92035664,0.00039992,31]
[404376188,1770085838901,-263.90050593,0.00039992,31]
[404376189,1770085838910,-454.27374898,0.00039992,31]
[404376190,1770085838919,-500.0,0.00039992,7]
[404376191,1770085838928,-500.0,0.00039992,31]
[404376192,1770085838937,-153.90872906,0.00039992,7]
[404376193,1770085838947,-169.4875037,0.00039992,7]
[404376194,1770085838957,-210.25258659,0.00039992,31]
[404376195,1770085838967,-500.0,0.00039992,31]
[404376196,1770085838976,-5000.0,0.00039994,30]
[404376197,1770085838986,-668.0,0.00039996,30]
[404376198,1770085838995,-395.58706595,0.0004,120]
[404376199,1770085839005,-500.0,0.00040002,2]
[404376200,1770085839014,-155.07966774,0.00040276,2]
[404376201,1770085839025,-300.0,0.00040893,2]
[404376202,1770085839034,-377.75791866,0.00041318,2]
[404376203,1770085839044,-1000.0,0.00042,120]
[404376204,1770085839053,-250.0,0.00043726,120]
[404376205,1770085839063,-250.0,0.00043726,120]
[404376206,1770085839072,-250.0,0.00043726,120]
[404376207,1770085839081,-226.88233167,0.00045,120]
[404376208,1770085839090,-305.8912739,0.00047993,30]
[404376209,1770085839099,-305.8912739,0.00047993,30]
[404376210,1770085839108,-305.8912739,0.00047993,30]
[404376211,1770085839118,-305.8912739,0.00047993,30]
[404376212,1770085839127,-305.8912739,0.00047993,30]
[404376213,1770085839137,-305.8912739,0.00047993,30]
[404376214,1770085839146,-305.8912739,0.00047993,30]
[404376215,1770085839157,-305.8912739,0.00047993,30]
[404376216,1770085839168,-305.8912739,0.00047993,30]
[404376217,1770085839177,-305.8912739,0.00047993,30]
[404376218,1770085839187,-305.8912739,0.00047993,30]
[404376219,1770085839197,-305.8912739,0.00047993,30]
[404376220,1770085839207,-305.8912739,0.00047993,30]
[404376221,1770085839221,-305.8912739,0.00047993,30]
[404376222,1770085839231,-305.8912739,0.00047993,30]
[404376223,1770085839240,-305.8912739,0.00047993,30]
[404376224,1770085839250,-305.8912739,0.00047993,30]
[404376225,1770085839261,-305.8912739,0.00047993,30]
[404376226,1770085839271,-305.8912739,0.00047993,30]
[404376227,1770085839281,-305.8912739,0.00047993,30]
[404376228,1770085839291,-305.8912739,0.00047993,30]
[404376229,1770085839301,-305.8912739,0.00047993,30]
[404376230,1770085839311,-305.8912739,0.00047993,30]
[404376231,1770085839320,-305.8912739,0.00047993,30]
[404376232,1770085839330,-305.8912739,0.00047993,30]
[404376233,1770085839339,-305.8912739,0.00047993,30]
[404376234,1770085839348,-305.8912739,0.00047993,30]
[404376235,1770085839358,-305.8912739,0.00047993,30]
[404376236,1770085839367,-305.8912739,0.00047993,30]
[404376237,1770085839377,-305.8912739,0.00047993,30]
[404376238,1770085839386,-305.8912739,0.00047993,30]
[404376239,1770085839395,-305.8912739,0.00047993,30]
[404376240,1770085839404,-305.8912739,0.00047993,30]
[404376241,1770085839413,-305.8912739,0.00047993,30]
[404376242,1770085839422,-305.8912739,0.00047993,30]
[404376243,1770085839431,-305.8912739,0.00047993,30]
[404376244,1770085839440,-305.8912739,0.00047993,30]
[404376245,1770085839450,-305.8912739,0.00047993,30]
[404376246,1770085839460,-305.8912739,0.00047993,30]
[404376247,1770085839469,-305.8912739,0.00047993,30]
[404376248,1770085839478,-305.8912739,0.00047993,30]
[404376249,1770085839488,-305.8912739,0.00047993,30]
[404376250,1770085839498,-3704.06684143,0.000489,120]
[404376251,1770085839507,-8910.4946301,0.0005,120]
[404376252,1770085839516,-771.56964489,0.0005,120]
[404376253,1770085839525,-3591.65297239,0.0005,120]
[404376254,1770085839534,-184.97288394,0.0005,120]
[404376255,1770085839544,-1000.0,0.0005,120]
[404376256,1770085839553,-179.0,0.0005,120]
[404376257,1770085839563,-151.0,0.00050499,30]
[404376258,1770085839572,-215.172,0.00050499,90]
[404376259,1770085839581,-179.33542633,0.00050499,90]
[404376260,1770085839591,-1666.93,0.00050499,2]
[404376261,1770085839600,-1666.93,0.00050499,2]
[404376262,1770085839609,-50620.84213831,0.000505,60]
[404376263,1770085839618,-679.96425358,0.0005058,2]
[404376264,1770085839627,-151.0,0.00051184,32]
[404376265,1770085839636,-1666.93,0.00051408,2]
[404376266,1770085839646,-151.0,0.00051869,34]
[404376267,1770085839656,-150.32745251,0.00052045,2]
[404376268,1770085839665,-170.43005848,0.00052554,36]
[404376269,1770085839674,-1154.15,0.000526,14]
[404376270,1770085839683,-1260.29222194,0.00053,120]
[404376271,1770085839693,-82561.61436726,0.00053,120]
[404376272,1770085839704,-30050.44927986,0.00054,2]
[404376273,1770085839713,-497.25385886,0.00054666,5]
[404376274,1770085839723,-1778.8,0.00054794,120]
[404376275,1770085839732,-500.0,0.00054794,120]
[404376276,1770085839742,-613.06,0.00054794,120]
[404376277,1770085839751,-500.0,0.00054794,120]
[404376278,1770085839761,-500.0,0.00054794,120]
[404376279,1770085839771,-500.0,0.00054794,120]
[404376280,1770085839781,-500.0,0.00054794,120]
[404376281,1770085839791,-500.0,0.00054794,120]
[404376282,1770085839802,-500.0,0.00054794,120]
[404376283,1770085839811,-500.0,0.00054794,120]
[404376284,1770085839821,-889.45,0.00054794,120]
[404376285,1770085839830,-500.0,0.00054794,120]
[404376286,1770085839839,-500.0,0.00054794,120]
[404376287,1770085839848,-1608.55,0.00054794,120]
[404376288,1770085839857,-7479.21,0.00054794,120]
[404376289,1770085839868,-200.0,0.00054794,120]
[404376290,1770085839877,-893.05,0.00054794,120]
[404376291,1770085839886,-771.68,0.00054794,120]
[404376292,1770085839896,-500.0,0.00054794,120]
[404376293,1770085839905,-500.0,0.00054794,120]
[404376294,1770085839915,-1002.37,0.00055,120]
[404376295,1770085839923,-200.30021573,0.00055342,120]
[404376296,1770085839933,-200.90358568,0.00055342,120]
[404376297,1770085839942,-150.0,0.00055342,120]
[404376298,1770085839951,-150.0,0.00055342,120]
[404376299,1770085839960,-740.91124423,0.00055463,2]
[404376300,1770085839969,-150.0,0.00055479,120]
[404376301,1770085839978,-150.0,0.00055479,120]
[404376302,1770085839987,-206.83417926,0.00055616,120]
[404376303,1770085839996,-150.0,0.00055616,120]
[404376304,1770085840007,-398.876,0.00056,120]
[404376305,1770085840017,-4470.43992116,0.000589,120]
[404376307,1770085840026,-215.62,0.00060247,120]
[404376308,1770085840035,-1666.93,0.00060272,2]
[404376310,1770085840044,-1778.8,0.00060273,120]
[404376312,1770085840053,-500.0,0.00060273,120]
[404376314,1770085840062,-613.06,0.00060273,120]
[404376315,1770085840076,-500.0,0.00060273,120]
[404376316,1770085840085,-500.0,0.00060273,120]
[404376317,1770085840093,-500.0,0.00060273,120]
[404376318,1770085840102,-500.0,0.00060273,120]
[404376319,1770085840118,-500.0,0.00060273,120]
[404376320,1770085840128,-500.0,0.00060273,120]
[404376322,1770085840137,-500.0,0.00060273,120]
[404376323,1770085840146,-889.45,0.00060273,120]
[404376324,1770085840155,-500.0,0.00060273,120]
[404376325,1770085840164,-500.0,0.00060273,120]
[404376326,1770085840173,-1608.55,0.00060273,120]
[404376327,1770085840183,-7479.21,0.00060273,120]
[404376328,1770085840192,-200.0,0.00060273,120]
[404376329,1770085840201,-893.05,0.00060273,120]
[404376330,1770085840211,-771.68,0.00060273,120]
[404376331,1770085840223,-500.0,0.00060273,120]
[404376332,1770085840233,-500.0,0.00060273,120]
[404376333,1770085840242,-150.32745251,0.00064362,2]
[404376334,1770085840251,-3000.0,0.000645,120]
[404376335,1770085840261,-894.25,0.00065743,30]
[404376336,1770085840271,-155.652,0.00065752,120]
[404376337,1770085840280,-1778.8,0.00065753,120]
[404376338,1770085840291,-500.0,0.00065753,120]
[404376339,1770085840300,-613.06,0.00065753,120]
[404376341,1770085840310,-500.0,0.00065753,120]
[404376342,1770085840318,-500.0,0.00065753,120]
[404376343,1770085840327,-500.0,0.00065753,120]
[404376344,1770085840336,-500.0,0.00065753,120]
[404376345,1770085840345,-500.0,0.00065753,120]
[404376346,1770085840355,-500.0,0.00065753,120]
[404376347,1770085840365,-500.0,0.00065753,120]
[404376348,1770085840374,-889.45,0.00065753,120]
[404376349,1770085840383,-500.0,0.00065753,120]
[404376350,1770085840393,-500.0,0.00065753,120]
[404376351,1770085840403,-1608.55,0.00065753,120]
[404376352,1770085840412,-7479.21,0.00065753,120]
[404376353,1770085840421,-200.0,0.00065753,120]
[404376354,1770085840431,-893.05,0.00065753,120]
[404376355,1770085840439,-771.68,0.00065753,120]
[404376356,1770085840448,-500.0,0.00065753,120]
[404376358,1770085840520,-500.0,0.00065753,120]
[404376359,1770085840537,-1666.93,0.00071231,2]
[404376360,1770085840546,-1778.8,0.00071232,120]
[404376361,1770085840555,-500.0,0.00071232,120]
[404376363,1770085840564,-613.06,0.00071232,120]
[404376365,1770085840574,-500.0,0.00071232,120]
[404376367,1770085840583,-500.0,0.00071232,120]
[404376369,1770085840592,-500.0,0.00071232,120]
[404376371,1770085840602,-500.0,0.00071232,120]
[404376373,1770085840611,-500.0,0.00071232,120]
[404376375,1770085840620,-500.0,0.00071232,120]
[404376377,1770085840629,-500.0,0.00071232,120]
[404376378,1770085840638,-889.45,0.00071232,120]
[404376380,1770085840650,-500.0,0.00071232,120]
[404376382,1770085840659,-500.0,0.00071232,120]
[404376384,1770085840669,-1608.55,0.00071232,120]
[404376386,1770085840678,-7479.21,0.00071232,120]
[404376388,1770085840687,-200.0,0.00071232,120]
[404376390,1770085840696,-893.05,0.00071232,120]
[404376392,1770085840705,-771.68,0.00071232,120]
[404376394,1770085840714,-500.0,0.00071232,120]
[404376396,1770085840723,-500.0,0.00071232,120]
[404376399,1770085840733,-150.32745251,0.00076679,2]
[404376401,1770085840743,-1666.93,0.00076711,2]
[404376402,1770085840752,-1778.8,0.00076712,120]
[404376404,1770085840761,-500.0,0.00076712,120]
[404376406,1770085840771,-613.06,0.00076712,120]
[404376408,1770085840780,-500.0,0.00076712,120]
[404376410,1770085840789,-500.0,0.00076712,120]
[404376412,1770085840800,-500.0,0.00076712,120]
[404376414,1770085840809,-500.0,0.00076712,120]
[404376416,1770085840819,-500.0,0.00076712,120]
[404376418,1770085840828,-500.0,0.00076712,120]
[404376420,1770085840837,-500.0,0.00076712,120]
[404376422,1770085840847,-889.45,0.00076712,120]
[404376424,1770085840856,-500.0,0.00076712,120]
[404376426,1770085840866,-500.0,0.00076712,120]
[404376428,1770085840875,-1608.55,0.00076712,120]
[404376430,1770085840885,-7479.21,0.00076712,120]
[404376432,1770085840895,-200.0,0.00076712,120]
[404376434,1770085840904,-893.05,0.00076712,120]
[404376436,1770085840913,-771.68,0.00076712,120]
[404376438,1770085840922,-500.0,0.00076712,120]
[404376440,1770085840931,-551.81855476,0.00076712,120]
[404376442,1770085840941,-1778.8,0.00082191,120]
[404376444,1770085840950,-500.0,0.00082191,120]
[404376446,1770085840959,-613.06,0.00082191,120]
[404376448,1770085840969,-500.0,0.00082191,120]
[404376450,1770085840978,-415.20497892,0.00082191,120]
[404376452,1770085840987,-500.0,0.00082191,120]
[404376454,1770085840996,-500.0,0.00082191,120]
[404376456,1770085841006,-500.0,0.00082191,120]
[404376458,1770085841015,-500.0,0.00082191,120]
[404376460,1770085841024,-273.84100057,0.00082191,120]
[404376462,1770085841033,-889.45,0.00082191,120]
[404376464,1770085841045,-500.0,0.00082191,120]
[404376466,1770085841066,-500.0,0.00082191,120]
[404376468,1770085841081,-1608.55,0.00082191,120]
[404376470,1770085841092,-7479.21,0.00082191,120]
[404376472,1770085841102,-200.0,0.00082191,120]
[404376474,1770085841112,-893.05,0.00082191,120]
[404376476,1770085841121,-771.68,0.00082191,120]
[404376478,1770085841132,-500.0,0.00082191,120]
[404376480,1770085841141,-3188.0,0.000845,120]
[404376482,1770085841150,-1666.93,0.0008767,2]
[404376484,1770085841159,-1778.8,0.00087671,120]
[404376486,1770085841167,-500.0,0.00087671,120]
[404376488,1770085841177,-613.06,0.00087671,120]
[404376490,1770085841186,-500.0,0.00087671,120]
[404376492,1770085841195,-500.0,0.00087671,120]
[404376494,1770085841204,-500.0,0.00087671,120]
[404376496,1770085841214,-497.5217122,0.00087671,120]
[404376498,1770085841226,-500.0,0.00087671,120]
[404376500,1770085841235,-889.45,0.00087671,120]
[404376502,1770085841244,-500.0,0.00087671,120]
[404376504,1770085841253,-500.0,0.00087671,120]
[404376506,1770085841263,-1608.55,0.00087671,120]
[404376508,1770085841271,-7479.21,0.00087671,120]
[404376510,1770085841281,-200.0,0.00087671,120]
[404376512,1770085841291,-893.05,0.00087671,120]
[404376514,1770085841301,-771.68,0.00087671,120]
[404376516,1770085841310,-500.0,0.00087671,120]
[404376518,1770085841319,-150.32745251,0.00088996,2]
[404376520,1770085841329,-566.03362844,0.0009,120]
[404376522,1770085841338,-1778.8,0.0009315,120]
[404376524,1770085841348,-500.0,0.0009315,120]
[404376526,1770085841358,-613.06,0.0009315,120]
[404376528,1770085841367,-500.0,0.0009315,120]
[404376530,1770085841376,-500.0,0.0009315,120]
[404376532,1770085841385,-563.99092746,0.0009315,120]
[404376534,1770085841395,-500.0,0.0009315,120]
[404376536,1770085841404,-889.45,0.0009315,120]
[404376538,1770085841413,-500.0,0.0009315,120]
[404376539,1770085841424,-500.0,0.0009315,120]
[404376542,1770085841433,-1608.55,0.0009315,120]
[404376544,1770085841443,-7479.21,0.0009315,120]
[404376546,1770085841452,-150.0,0.0009315,120]
[404376548,1770085841461,-893.05,0.0009315,120]
[404376550,1770085841470,-771.68,0.0009315,120]
[404376552,1770085841480,-500.0,0.0009315,120]
[404376554,1770085841490,-1666.93,0.00098629,2]
[404376556,1770085841499,-1778.8,0.0009863,120]
[404376558,1770085841509,-500.0,0.0009863,120]
[404376560,1770085841518,-613.06,0.0009863,120]
[404376562,1770085841527,-500.0,0.0009863,120]
[404376564,1770085841536,-500.0,0.0009863,120]
[404376566,1770085841545,-500.0,0.0009863,120]
[404376568,1770085841554,-889.45,0.0009863,120]
[404376570,1770085841563,-500.0,0.0009863,120]
[404376571,1770085841572,-500.0,0.0009863,120]
[404376573,1770085841581,-1608.55,0.0009863,120]
[404376576,1770085841592,-7479.21,0.0009863,120]
[404376578,1770085841602,-893.05,0.0009863,120]
[404376580,1770085841611,-771.68,0.0009863,120]
[404376582,1770085841620,-500.0,0.0009863,120]
[404376584,1770085841630,-20000.0,0.000988,120]
[404376586,1770085841639,-1000.0,0.001,120]
[404376588,1770085841648,-1000.0,0.001,120]
[404376590,1770085841657,-1154.15,0.001,30]
[404376592,1770085841666,-150.32745251,0.00101313,2]
[404376594,1770085841675,-333.297391,0.00104109,60]
[404376596,1770085841684,-1778.8,0.00104109,120]
[404376598,1770085841693,-500.0,0.00104109,120]
[404376600,1770085841702,-613.06,0.00104109,120]
[404376602,1770085841711,-500.0,0.00104109,120]
[404376604,1770085841720,-500.0,0.00104109,120]
[404376606,1770085841729,-500.0,0.00104109,120]
[404376608,1770085841738,-889.45,0.00104109,120]
[404376610,1770085841747,-500.0,0.00104109,120]
[404376612,1770085841756,-522.03605614,0.00104109,120]
[404376614,1770085841765,-1608.55,0.00104109,120]
[404376615,1770085841774,-7479.21,0.00104109,120]
[404376617,1770085841783,-893.05,0.00104109,120]
[404376619,1770085841792,-771.68,0.00104109,120]
[404376621,1770085841802,-500.0,0.00104109,120]
[404376623,1770085841811,-1666.93,0.00109588,2]
[404376625,1770085841820,-1778.8,0.00109589,120]
[404376627,1770085841829,-500.0,0.00109589,120]
[404376629,1770085841838,-613.06,0.00109589,120]
[404376631,1770085841848,-500.0,0.00109589,120]
[404376633,1770085841857,-500.0,0.00109589,120]
[404376635,1770085841865,-500.0,0.00109589,120]
[404376637,1770085841874,-889.45,0.00109589,120]
[404376639,1770085841883,-500.0,0.00109589,120]
[404376641,1770085841892,-1608.55,0.00109589,120]
[404376643,1770085841901,-7479.21,0.00109589,120]
[404376645,1770085841909,-893.05,0.00109589,120]
[404376647,1770085841918,-771.68,0.00109589,120]
[404376649,1770085841927,-500.0,0.00109589,120]
[404376651,1770085841936,-215.172,0.0011,120]
[404376653,1770085841946,-1000.0,0.0011,120]
[404376655,1770085841956,-204.317293,0.00114519,120]
[404376657,1770085841965,-2000.0,0.00115,120]
[404376659,1770085841974,-1778.8,0.00115068,120]
[404376661,1770085841983,-500.0,0.00115068,120]
[404376663,1770085841992,-613.06,0.00115068,120]
[404376665,1770085842002,-500.0,0.00115068,120]
[404376667,1770085842011,-297.96311217,0.00115068,120]
[404376669,1770085842019,-500.0,0.00115068,120]
[404376671,1770085842028,-889.45,0.00115068,120]
[404376673,1770085842037,-469.23213862,0.00115068,120]
[404376675,1770085842048,-1608.55,0.00115068,120]
[404376677,1770085842057,-7479.21,0.00115068,120]
[404376679,1770085842066,-893.05,0.00115068,120]
[404376681,1770085842075,-771.68,0.00115068,120]
[404376683,1770085842084,-209.33596131,0.00115068,120]
[404376685,1770085842093,-1000.0,0.0012,120]
[404376687,1770085842103,-301.60610611,0.0012,60]
[404376689,1770085842112,-1666.93,0.00120546,2]
[404376691,1770085842121,-1778.8,0.00120547,120]
[404376693,1770085842130,-349.53741004,0.00120547,120]
[404376695,1770085842139,-613.06,0.00120547,120]
[404376697,1770085842148,-500.0,0.00120547,120]
[404376699,1770085842157,-500.0,0.00120547,120]
[404376701,1770085842166,-889.45,0.00120547,120]
[404376703,1770085842175,-1608.55,0.00120547,120]
[404376705,1770085842185,-7479.21,0.00120547,120]
[404376707,1770085842194,-893.05,0.00120547,120]
[404376709,1770085842204,-771.68,0.00120547,120]
[404376711,1770085842215,-150.32745251,0.00125947,2]
[404376713,1770085842229,-1778.8,0.00126027,120]
[404376715,1770085842239,-613.06,0.00126027,120]
[404376717,1770085842248,-500.0,0.00126027,120]
[404376719,1770085842258,-417.48402844,0.00126027,120]
[404376721,1770085842267,-889.45,0.00126027,120]
[404376723,1770085842276,-1608.55,0.00126027,120]
[404376725,1770085842286,-7479.21,0.00126027,120]
[404376728,1770085842297,-893.05,0.00126027,120]
[404376729,1770085842307,-771.68,0.00126027,120]
[404376731,1770085842316,-1000.0,0.0013,120]
[404376733,1770085842325,-1666.93,0.00131505,2]
[404376735,1770085842335,-1778.8,0.00131506,120]
[404376737,1770085842344,-613.06,0.00131506,120]
[404376739,1770085842353,-500.0,0.00131506,120]
[404376740,1770085842363,-889.45,0.00131506,120]
[404376741,1770085842374,-1608.55,0.00131506,120]
[404376742,1770085842383,-7479.21,0.00131506,120]
[404376743,1770085842392,-893.05,0.00131506,120]
[404376744,1770085842401,-771.68,0.00131506,120]
[404376745,1770085842409,-510.79323,0.00132999,60]